Cogmind - Beta 16 @@@ ROGUE MODE // 2026.01.11 @ 18:54:11 Player: Glyb Result: Destroyed by G-47 Trooper with Particle Gun Performance ------------- Evolutions (0) 0 Regions Visited (1) 200 Robots Destroyed (20) 100 Value Destroyed (422) 422 Prototype IDs (2) 40 Alien Tech Used (0) 0 Bonus (0) 0 TOTAL SCORE: 762 Bonus ------- None Cogmind --------- Core Integrity 0/250 Matter 300/300 Energy 250/250 System Corruption 1% Temperature Cool (9) Movement Treading (160) Location -10/Materials Parts ------- > --- POWER (1) -------- Ion Engine > --- PROPULSION (2) --- Light Treads Compact Wheel > --- UTILITY (2) ------ Visual Processing Unit Targeting Computer > --- WEAPON (2) ------- Light Assault Rifle Light Assault Rifle > --- INVENTORY (5) ---- Small Storage Unit Light Armor Plating Light Armor Plating Light Armor Plating Datajack Peak State ------------ > --- POWER ------------ Ion Engine > --- PROPULSION ------- Light Treads Compact Wheel > --- UTILITY ---------- Visual Processing Unit Targeting Computer > --- WEAPON ----------- Light Assault Rifle Light Assault Rifle > --- INVENTORY -------- Small Storage Unit Light Armor Plating Light Armor Plating Datajack [Rating: 8] Favorites ----------- Power Ion Engine Engine Ion Engine Propulsion Light Treads Treads Light Treads Wheel Compact Wheel Hover Unit Hover Unit Utility Targeting Computer Storage Small Storage Unit Processor Targeting Computer Weapon Light Assault Rifle Energy Gun EM Pulse Gun Ballistic Gun Light Assault Rifle Build | -11 -10 ------- Run | Yrd Mat Slots Evolved . | . . Power . | . . Propulsion . | . . Utility . | . . Weapon . | . . Parts Attached 16 | 6 10 Power 3 | 1 2 Engine 3 | 1 2 Core . | . . Reactor . | . . Propulsion 4 | 2 2 Treads 2 | 2 . Leg . | . . Wheel 1 | . 1 Hover 1 | . 1 Flight . | . . Utility 3 | 1 2 Device . | . . Storage 1 | 1 . Processor 2 | . 2 Hackware . | . . Protection . | . . Artifact . | . . Weapon 6 | 2 4 Energy Gun 2 | 1 1 Energy Cannon . | . . Ballistic Gun 4 | 1 3 Ballistic Cannon . | . . Launcher . | . . Special Weapon . | . . Impact Weapon . | . . Slashing Weapon . | . . Piercing Weapon . | . . Special Melee Weapon . | . . Unidentified Prototypes . | . . Corrupted Parts 1 | . 1 System Corruption 1 | . 1 Parts Lost 7 | . 7 Power 1 | . 1 Propulsion 2 | . 2 Utility . | . . Weapon 4 | . 4 Highest Loss Streak 4 | . 4 To Critical Strikes . | . . Average Backups 3 | 2 3 Power . | . . Propulsion . | 1 . Utility 2 | . 2 Weapon . | . . Tool/Special . | . . Unused Backups 9 | . 9 Power . | . . Propulsion 2 | . 2 Utility 6 | . 6 Weapon . | . . Tool/Special 1 | . 1 Average Slot Usage (%) 76 | . 76 Engine 11 | . 11 Treads 18 | . 18 Wheel 4 | . 4 Hover 1 | . 1 Processor 17 | . 17 Energy Gun 7 | . 7 Ballistic Gun 14 | . 14 Peak Build Rating 8 | 6 8 Average Rating 5 | 4 5 On Entrance 3 | . 6 Avg Prop Armor Cover (%) 10 | . 10 Naked Turns . | . . Heaviest Build 14 | 14 14 Greatest Support 40 | 40 40 Greatest Overweight (x) 1 | . 1 Average Overweight (x) . | . . Largest Inventory Capacity 8 | 8 8 Average Capacity 5 | 7 5 Most Carried 5 | 4 5 Average Carried 3 | 2 3 Final Capacity 8 | 8 5 Final Carried 5 | 4 5 Class Distribution -------------------- 72% | Mutant 27% | Scavenger-Mutant Dominant Class ---------------- Mutant | -10/Materials Resources | -11 -10 ----------- Run | Yrd Mat Matter Collected 517 | 221 296 Remotely . | . . Salvage Created 619 | . 619 Parts 39 | . 39 Haulers Intercepted 1 | . 1 Recyclers Shooed . | . . Parts Field Recycled . | . . Retrieved Matter . | . . Parts Self-Destructed . | . . Prevented . | . . Parts Restored . | . . Kills | -11 -10 ------- Run | Yrd Mat Combat Hostiles Destroyed 16 | . 16 Guns 16 | . 16 Classes Destroyed 5 | . 5 Hauler 1 | . 1 Operator 1 | . 1 Watcher 2 | . 2 Swarmer 8 | . 8 Grunt 8 | . 8 Best Kill Streak 4 | . 4 Combat Bots Only 4 | . 4 Max Kills in Single Turn 1 | . 1 Gunslinging . | . . Exploded . | . . Melee . | . . Uniques/NPCs Destroyed . | . . Combat | -11 -10 -------- Run | Yrd Mat Hostile Shots Fired 136 | . 136 Missed 38 | . 38 Hits 98 | . 98 Projectile 98 | . 98 Critical Strikes 1 | . 1 Damage Taken 950 | . 950 Core 254 | . 254 Absorbed by Shields . | . . Regen/Repaired (Parts) 76 | . 76 Core Remaining (%) 100 | 100 . Volleys Fired 79 | . 79 Largest 2 | . 2 Hottest 70 | . 70 Shots Fired 110 | . 110 Gun 110 | . 110 Cannon . | . . Launcher . | . . Special . | . . Kinetic 58 | . 58 Thermal 18 | . 18 Explosive . | . . Electromagnetic 34 | . 34 Robot Hit Streak 8 | . 8 Robot Miss Streak 5 | . 5 Penetration Max . | . . Secondary Targets 1 | . 1 Max Gunslinging Chain 1 | . 1 Shots Hit Robots 60 | . 60 Core Hits 32 | . 32 Critical Kills . | . . Critical Parts Destroyed . | . . Critical Strikes . | . . Melee Attacks . | . . Impact . | . . Slashing . | . . Piercing . | . . Sneak Attacks . | . . Combat Hostiles . | . . Follow-up Attacks . | . . Damage Inflicted 718 | . 718 Guns 718 | . 718 Cannons . | . . Explosions . | . . Melee . | . . Ramming . | . . Kinetic 278 | . 278 Thermal 136 | . 136 Explosive . | . . Electromagnetic 304 | . 304 Impact . | . . Slashing . | . . Piercing . | . . Highest Corruption 1 | . 1 Average Corruption 1 | . 1 Corruption Purged . | . . Corruption Blocked . | . . Effects 3 | . 3 Message Errors 1 | . 1 Energy Discharges 1 | . 1 Weapon Failures 1 | . 1 Overload Shots . | . . Overflow Damage . | . . Projectiles . | . . Explosions . | . . Melee . | . . Knockbacks . | . . Impact . | . . Kinetic . | . . Secondary . | . . Self-Inflicted Damage . | . . Shots . | . . Rammed . | . . Targets Rammed . | . . Kicked . | . . Crushed . | . . Highest Temperature 72 | . 72 Average Temperature 14 | . 14 Received Heat Transfer 339 | . 339 Siege Activations . | . . Martial Activations . | . . Shielding Activations . | . . Robots Disrupted . | . . Combat Hostiles . | . . Robots Corrupted . | . . Combat Hostiles . | . . Parts Fried 1 | . 1 Impact Corruptions . | . . Robots Melted . | . . Combat Hostiles . | . . Parts Melted . | . . Heat Transferred 407 | . 407 Parts Sabotaged . | . . Parts Stolen . | . . Parts Stripped . | . . Power Chain Reactions . | . . Alert | -11 -10 ------- Run | Yrd Mat Maximum Alert Level . | . . Low Security (%) 100 | 100 100 Level 1 . | . . Level 2 . | . . Level 3 . | . . Level 4 . | . . Level 5 . | . . High Security . | . . Max Security . | . . Peak Influence 193 | . 193 Initial . | . . Average 107 | . 117 Influence Increases 539 | . 539 Destroy 0b10 Robot/C 320 | . 320 Destroy 0b10 Robot/NC 20 | . 20 Destroy Leader 66 | . 66 Successful Hack 28 | . 28 Select Force Hacks 60 | . 60 Disable Machine 30 | . 30 Lose Combat Pursuer 15 | . 15 Influence Decreases 395 | . 395 Time Decay 325 | . 325 Lost Part 70 | . 70 Squads Dispatched 3 | . 3 Investigation 2 | . 2 Extermination . | . . Reinforcement 1 | . 1 Assault . | . . Garrison . | . . Intercept . | . . Searches Triggered . | . . Construction Impeded . | . . Haulers Reinforced . | . . Active Scanning Responses . | . . Cargo Convoy Interrupts . | . . Stealth | -11 -10 --------- Run | Yrd Mat Distress Signals 2 | . 2 Communications Jammed . | . . Distress Signals . | . . Times Spotted 26 | . 26 Peak Tracking Total 5 | . 5 Tactical Retreats 1 | . 1 Traps | -11 -10 ------- Run | Yrd Mat Traps Triggered . | . . Indirectly . | . . Trap Hack Attempts . | . . Triggered . | . . Disarmed . | . . Reprogrammed . | . . Reused . | . . Traps Extracted . | . . Installed . | . . Triggered . | . . Machines | -11 -10 ---------- Run | Yrd Mat Machines Disabled 2 | . 2 Max in Single Turn 1 | . 1 Machines Repaired . | . . Machines Dismantled . | . . Machines Sabotaged . | . . Overloaded Fab Kills . | . . Hacking | -11 -10 --------- Run | Yrd Mat Machines Accessed 7 | . 7 Terminals 4 | . 4 Fabricators . | . . Repair Stations 1 | . 1 Recycling Units 2 | . 2 Scanalyzers . | . . Garrison Access . | . . Total Hacks 22 | . 22 Successful 14 | . 14 Failed 8 | . 8 Catastrophic . | . . Database Lockouts . | . . Manual 6 | . 6 Terminals 15 | . 15 Fabricators . | . . Repair Stations 4 | . 4 Recycling Units 3 | . 3 Scanalyzers . | . . Garrison Access . | . . Terminal Hacks 6 | . 6 Record 1 | . 1 Prototype ID Bank 1 | . 1 Locate Traps 1 | . 1 Dispatch Records 1 | . 1 Recall Reinforcements 1 | . 1 Hauler Manifests 1 | . 1 Fabricator Hacks . | . . Repair Station Hacks 4 | . 4 Scan Component 2 | . 2 Repair 2 | . 2 Recycling Unit Hacks . | . . Scanalyzer . | . . Garrison Access Hacks . | . . Unauthorized Hacks 4 | . 4 Terminals 2 | . 2 Botnet 2 | . 2 Fabricators . | . . Repair Stations . | . . Recycling Units 2 | . 2 Tunnel 2 | . 2 Scanalyzers . | . . Garrison Access . | . . Data Cores Recovered . | . . Used . | . . Hacking Detections 1 | . 1 Full Trace Events . | . . Feedback Events . | . . Feedback Blocked . | . . Robot Schematics Acquired . | . . Robots Built . | . . Authchips . | . . Time . | . . Total Robot Build Rating . | . . Part Schematics Acquired . | . . Parts Built . | . . Authchips . | . . Time . | . . Total Part Build Rating . | . . Part Studies Acquired . | . . Parts Repaired 2 | . 2 Time 52 | . 52 Parts Recycled . | . . Recycled Matter . | . . Retrieved Matter . | . . Retrieved Components . | . . Parts Scanalyzed . | . . Part Schematics Acquired . | . . Parts Damaged . | . . Bothacking | -11 -10 ------------ Run | Yrd Mat Used RIF Installer . | . . Robots Hacked . | . . Non-combat . | . . Combat . | . . Robot Hacks Applied . | . . Relay Couplers Released . | . . Fabnet Peak Effective % . | . . Robots Rewired . | . . Allies Hacked . | . . Hacks Repelled . | . . Allies | -11 -10 -------- Run | Yrd Mat Total Allies . | . . Largest Group . | . . Highest-Rated Group . | . . Highest-Rated Ally . | . . Total Orders . | . . Ally Attacks . | . . Total Damage . | . . Kills . | . . Allies Corrupted . | . . Allies Melted . | . . Intel | -11 -10 ------- Run | Yrd Mat Active Infowar (turns) 427 | . 427 Optics 427 | . 427 Robot Analysis Total . | . . Derelict Logs Recovered . | . . Drone Launches . | . . Drone Recoveries . | . . Exploration | -11 -10 ------------- Run | Yrd Mat Turns Passed 870 | 75 795 Spaces Moved 410 | 41 369 Core 2 | 2 . Treads 299 | 39 260 Legs . | . . Wheels 54 | . 54 Hover 55 | . 55 Flight . | . . Fastest Speed 50 | 50 80 Average Speed 141 | 154 139 Slowest Speed 160 | 160 160 Overloaded Moves . | . . Propulsion Burnouts . | . . Robots Hopped . | . . Potential Cave-ins . | . . Cave-ins Triggered . | . . Exploration Rate (%) 29 | 3 56 Regions Visited 1 Branch Regions . Pre-discovered Areas 2 | . 2 Known Exits Taken . | . . Unknown Exits Taken 1 | 1 . Scrap Searched . | . . Spaces Dug . | . . Terrain Destroyed . | . . Melee . | . . Projectile . | . . AOE . | . . Terrain Rammed . | . . Walls Destroyed . | . . Machines Disabled . | . . Actions | -11 -10 --------- Run | Yrd Mat Total 593 | 50 543 Wait 57 | . 57 Move 409 | 40 369 Hop . | . . Pick Up 16 | 4 12 Fast Attach 12 | 6 6 Attach 6 | . 6 Detach 1 | . 1 Swap 5 | . 5 Drop 8 | . 8 Fire 79 | . 79 Melee . | . . Ram . | . . Kick . | . . Crush . | . . Escape Stasis . | . . Rewire . | . . Trap . | . . Miscellaneous . | . . Route ------- -11/Scrapyard -10/Materials (discovered 3 exits: [*Mat] / [*Min] / [*Sub]) History --------- Turn | Location | Event 26 | -11/Scrapyard | Discovered new exit (range 15) 76 | -11/Scrapyard | Entered Materials 232 | -10/Materials | Core integrity fell below 50% 276 | -10/Materials | Lost 4 parts (1p1n2w) 302 | -10/Materials | Build established: Mutant 392 | -10/Materials | Discovered new exit (range 13) 498 | -10/Materials | Discovered new exit (range 13) 716 | -10/Materials | Repaired Ion Engine 744 | -10/Materials | Repaired Lgt. Treads 783 | -10/Materials | Core integrity fell below 20% 842 | -10/Materials | Discovered new exit (range 9) 871 | -10/Materials | Destroyed by G-47 Trooper with Particle Gun Last Messages --------------- 00744_ Acquired Lgt. Treads. 00758_ Connecting with Terminal... >>Trojan(Botnet) Trojan loaded successfully. Testing... Terminal linked with 1 system. Awaiting botnet instructions. 00776_ System corrupted: Lgt. Assault Rifle jammed. 00784_ G-34 Mercenary destroyed. 00787_ K-01 Serf collects debris. 00789_ G-34 Mercenary destroyed. 00791_ K-01 Serf collects debris. 00792_ Acquired 35 matter. 00794_ K-01 Serf collects debris. 00801_ Dropped Ion Engine. 00802_ Acquired 10 matter. 00804_ K-01 Serf collects debris. 00842_ EXIT=FOUND 00853_ System corrupted: Energy discharge (-50). 00859_ Critical hit (Burn: +37). Map ----- +----------------------------------------------------+ | ????????????????????????????## ##?# | | ????????????????????????????# # | | ????????????????????????????# # | | ????????????????????????????# | | ???????????????????????????#< # | | ????????????????????????????????????#### | | ???????????????????????????????????????# | | ????????????????##?????##??????????????### | | ????????????????# ????? #????????????????? | | ????????????????# ??? #????????????????? | | ????????????????# """ #????????????????? | | ????????????????# """ #????????????????? | | ????????????????# ########?????????? | | ??????########### """ # #?????????? | | ??????# ## """ # """ #?????????? | | ??????#""" ##= """ # """ #?????????? | | ??????#""" ## # """ #?######### | | ??????#""" ## # ??#"""""""# | | ??????# #?? ?# ????#" !"! "# | | ??????# " " #??##/#####+#######" "# | | ??????# "R" #### | | ??????# """ + % =* < | | ??????# #### ^ = = | | ??????#####+####??# k####+####### # | | ????????# ##### #[ #???######### | | ????????# T" @ # #???????????? | | ????????# " # #???????????? | | ????????# ! * # #???????????? | | ????????# ##k###### "T" #???????????? | | ????????#######==%#???# #???????????? | | ??????????????# ############???????????? | | ??????????????# / #?????????? | | ??????????????# ##########?????????????? | | ??????????????# ## #???????????????? | | ??????????????# ## """ #???????????????? | | ??????????????# ## """ #???????????????? | | ??????#######?##/### """ #???????????????? | | ??????# #### ### #???????????????? | | ??????# # """ #???????????????? | | ??????# + """ #???????????????? | | ??????# # """ #???????????????? | | ??????# ######## #???????????????? | | ??????## ##??????# #???????????????? | | ???????# ????????# = #???????????????? | | ???????# ????????# #???????????????? | | ???????+ ????????#######???????????????? | | ???????# ??????????????????????????????? | | ???????# < ??????????????????????????????? | | ???????# ???????????????????????????????? | | ???????###???????????????????????????????? | +----------------------------------------------------+ Best States ------------- Heat Dissipation 25 Energy Generation 10 Energy Capacity 250 Matter Stores 300 Matter Capacity 300 Sight Range 18 Terrain Scan Density 10 Evasion (%) 49 Targeting Accuracy 5 Recoil Reduction 2 Item Schematics ----------------- None Robot Schematics ------------------ None Fabricated ------------ Nothing Repaired ---------- Ion Engine | 48% | -10/Materials Lgt. Treads | 67% | -10/Materials Studied --------- None Alien Tech Used ----------------- None Achievements -------------- None Challenges ------------ None Game ------ Seed BombTitaniumMount Manual? 0 Play Time 00:12:37 Cumulative 21.3 hours Start 2026.01.11 @ 18:43:04 End 2026.01.11 @ 18:54:11 Sessions 1 Manual Loads 0 Difficulty Rogue Special Mode None Game No. 27 Rogue 27 Adventurer 0 Explorer 0 Win Type - Total 0 Types 0/0/0/0/0/0/0/0/0/0 Lore% 15 Gallery% 26 Achievement% 19 Wizard Run 0 Options --------- Layout 0 ASCII 0 Keyboard 1 Movement Numpad Keybinds 0 Fullscreen 2 Font 18/SmallcapsGlow Map View 112x50 Zoom Use 0% Tactical HUD 1 Map Filters NONE Filters NONE Steam 1 RUN: 6e954fe2-57f4-423b-8bc5-8f32434accfa